bitfinex-derivatives/quotes_SOLF0:USTF0_20241105
["timestamp","ask_amount","ask_price","bid_price","bid_amount"]
[1730826352008,14.19391686,169.04,168.94,3.78]
[1730826352308,14.19391686,169.04,168.97,2.9595]
[1730826352510,2.6351,169.03,168.97,2.9595]
[1730826352708,2.6351,169.03,168.93,17.97391686]
[1730826353026,14.19391686,169.02,168.93,3.78]
[1730826353203,14.19391686,169.02,168.9,14.19391686]
[1730826353599,14.19391686,169.0,168.91,3.78]
[1730826353811,14.19391686,169.0,168.88,56.77391686]
[1730826354014,2.9597,168.97,168.89,3.78]
[1730826354250,14.19391686,169.0,168.89,3.78]
[1730826354516,3.78,169.02,168.89,2.9608]
[1730826354517,2.96,168.95,168.89,2.9608]
[1730826354913,1.2515,168.97,168.88,17.97391686]
[1730826355113,4.211,168.97,168.92,2.9602]
[1730826355419,4.211,168.97,168.88,17.97391686]
[1730826355913,1.2515,168.97,168.88,17.97391686]
[1730826357656,1.2515,168.97,168.93,2.9601]
[1730826357966,17.97391686,169.02,168.91,14.19391686]
[1730826358555,2.959,169.0,168.95,2.9597]
[1730826358751,2.6351,169.03,168.97,14.19391686]
[1730826358920,14.19391686,169.12,168.99,14.19391686]
[1730826359160,2.6634,169.09,169.06,2.9579]
[1730826359318,1.3575,169.09,169.02,14.19391686]
[1730826359717,1.3575,169.09,169.05,2.9579]
[1730826359922,1.3575,169.09,169.02,14.19391686]
[1730826360221,4.3151,169.09,169.04,2.9582]
[1730826360535,1.3575,169.09,169.02,14.19391686]
[1730826361029,1.3575,169.09,169.05,2.9581]
[1730826361216,1.3575,169.09,169.02,14.19391686]
[1730826361443,1.3575,169.09,169.01,22.70685068]
[1730826361752,1.3795,169.11,169.01,22.70685068]
[1730826362008,1.3059,169.12,169.01,22.70685068]
[1730826362179,26.48685068,169.21,169.13,2.9567]
[1730826362320,1.2921,169.2,169.11,3.78]
[1730826362622,1.2921,169.2,169.12,3.78]
[1730826363121,1.2921,169.2,169.13,3.78]
[1730826363318,2.9559,169.18,169.11,2.9569]
[1730826363519,2.9559,169.18,169.12,3.78]
[1730826363909,4.2477,169.2,169.12,3.78]
[1730826364124,1.2921,169.2,169.12,3.78]
[1730826364816,2.9557,169.19,169.12,6.7368]
[1730826365011,2.9557,169.19,169.12,3.78]
[1730826365565,2.956,169.17,169.12,6.7369]
[1730826365720,2.956,169.17,169.13,3.78]
[1730826366521,22.70685068,169.19,169.08,3.78]
[1730826367219,22.70685068,169.19,169.08,2.9576]
[1730826367419,22.70685068,169.19,169.05,22.70685068]
[1730826367420,22.70685068,169.19,169.09,3.78]
[1730826367614,2.9568,169.13,169.07,2.9577]
[1730826367819,2.9568,169.13,169.07,6.7377]
[1730826368034,22.70685068,169.19,169.07,3.78]
[1730826368239,2.9565,169.15,169.09,2.9572]
[1730826368539,22.70685068,169.19,169.07,3.78]
[1730826368720,1.2921,169.2,169.07,3.78]
[1730826368919,1.2921,169.2,169.1,22.70685068]
[1730826369424,4.2476,169.2,169.14,2.9564]
[1730826369625,4.2476,169.2,169.14,3.76]
[1730826370235,1.2921,169.2,169.14,3.76]
[1730826370929,4.2476,169.2,169.15,2.9563]
[1730826371150,1.2921,169.2,169.14,3.76]
[1730826373160,1.2921,169.2,169.13,3.76]
[1730826373334,2.9559,169.18,169.13,6.7167]
[1730826373526,1.2921,169.2,169.07,22.70685068]
[1730826373726,1.2921,169.2,169.08,3.76]
[1730826373928,2.9561,169.17,169.1,2.9571]
[1730826374124,1.2921,169.2,169.08,3.76]
[1730826374527,2.9563,169.16,169.11,2.957]
[1730826374726,1.2921,169.2,169.11,2.957]
[1730826374922,1.2921,169.2,169.08,3.76]
[1730826375128,22.70685068,169.18,169.08,3.76]
[1730826375533,22.70685068,169.18,169.09,3.76]
[1730826376328,2.9567,169.14,169.09,6.7173]
[1730826378430,2.9572,169.11,169.09,3.76]
[1730826378635,3.01431594,169.17,169.09,3.76]
[1730826379024,2.957,169.12,169.09,3.76]
[1730826381325,22.70685068,169.15,169.09,3.76]
[1730826381531,2.9571,169.11,169.09,3.76]
[1730826381828,1.38,169.14,169.09,3.76]
[1730826382536,2.9569,169.12,169.09,3.76]
[1730826384527,2.9565,169.15,169.11,2.957]
[1730826384730,22.70685068,169.18,169.09,3.76]
[1730826385233,2.9563,169.16,169.11,2.9569]
[1730826386326,2.9564,169.15,169.11,2.9569]
[1730826387022,2.9559,169.18,169.14,2.9564]
[1730826387231,1.378,169.19,169.11,14.19981475]
[1730826387728,14.19981475,169.21,169.11,14.19981475]
[1730826387926,2.9555,169.21,169.16,2.9561]
[1730826388632,2.5922,169.25,169.14,3.76]
[1730826388818,1.3013,169.25,169.16,14.19981475]
[1730826389028,14.19981475,169.24,169.14,3.76]
[1730826389229,14.19981475,169.22,169.04,0.5856]
[1730826389522,22.7144153,169.22,169.08,22.7144153]
[1730826389924,2.956,169.17,169.12,2.9568]
[1730826390131,22.7144153,169.2,169.1,3.76]
[1730826390422,22.7144153,169.2,169.05,22.7144153]
[1730826390423,22.7144153,169.17,169.08,3.76]
[1730826390617,2.9565,169.15,169.1,2.9571]
[1730826390829,2.9565,169.15,169.08,3.76]
[1730826391231,1.3178,169.16,169.08,3.76]
[1730826391531,1.3178,169.16,169.06,3.76]
[1730826391929,22.7144153,169.15,168.94,3.01273619]
[1730826392120,22.7144153,169.15,169.0,22.7144153]
[1730826392428,22.7144153,169.15,169.01,3.76]
[1730826392727,2.9573,169.1,169.01,3.76]
[1730826392916,22.7144153,169.15,169.01,3.76]
[1730826393119,2.9571,169.11,169.01,3.76]
[1730826393303,22.7144153,169.15,169.01,3.76]
[1730826393509,22.7144153,169.15,169.0,22.7144153]
[1730826393709,2.9572,169.11,169.01,3.76]
[1730826394607,22.7144153,169.15,169.01,3.76]
[1730826395034,3.76,169.14,169.05,2.958]
[1730826395217,2.9578,169.07,168.97,22.7144153]
[1730826395509,2.9578,169.07,169.03,2.9584]
[1730826396108,2.5574,169.11,168.98,3.76]
[1730826396914,2.9575,169.09,169.04,2.9582]
[1730826397317,2.9576,169.08,169.04,2.9582]
[1730826397914,2.9574,169.1,169.05,2.958]
[1730826398408,1.3092,169.13,169.03,3.76]
[1730826399009,2.9572,169.11,169.06,2.9579]
[1730826399314,22.7144153,169.11,169.03,3.76]
[1730826399706,22.7144153,169.08,168.95,0.5863]
[1730826399909,1.32,169.07,168.96,3.76]
[1730826400106,1.32,169.07,168.97,22.7144153]
[1730826401215,4.2778,169.07,169.03,2.9584]
[1730826401922,1.32,169.07,168.97,22.7144153]
[1730826403119,4.2778,169.07,169.02,2.9585]
[1730826404220,1.32,169.07,168.97,22.7144153]
[1730826404816,2.9583,169.04,168.99,2.9591]
[1730826405026,1.32,169.07,168.99,2.9591]
[1730826405217,2.5939,169.07,168.99,2.9591]
[1730826406120,2.9584,169.04,168.99,2.9591]
[1730826406618,2.9582,169.05,169.0,2.9588]
[1730826407324,2.9584,169.04,169.0,2.9588]
[1730826407821,2.9584,169.04,168.99,2.9591]
[1730826408414,2.958,169.06,169.01,2.9588]
[1730826408625,2.5939,169.07,168.97,22.7144153]
[1730826409126,2.958,169.06,168.97,22.7144153]
[1730826410124,2.958,169.06,169.01,2.9587]
[1730826412430,14.19901655,169.11,169.01,14.19901655]
[1730826412619,15.48531655,169.11,169.01,17.95901655]
[1730826413020,2.9577,169.08,169.04,2.9581]
[1730826413217,1.3092,169.13,169.03,14.19901655]
[1730826413432,1.3092,169.13,169.06,14.19901655]
[1730826413644,1.2863,169.16,169.13,2.9567]
[1730826413922,1.2863,169.16,169.08,14.19901655]
[1730826415527,2.9564,169.15,169.1,2.9572]
[1730826417426,2.9564,169.15,169.11,2.957]
[1730826417625,1.2863,169.16,169.08,14.19901655]
[1730826417826,14.19901655,169.19,169.08,14.19901655]
[1730826418131,2.9562,169.16,169.12,2.9569]
[1730826418330,2.9562,169.16,169.08,14.19901655]
[1730826418532,14.19901655,169.17,169.06,17.95901655]
[1730826418927,14.19901655,169.15,169.06,14.19901655]
[1730826419129,14.19901655,169.15,169.06,3.76]
[1730826419334,14.19901655,169.12,169.03,14.19901655]
[1730826419529,1.3728,169.14,169.03,17.95901655]
[1730826419739,1.3574,169.22,169.1,14.19901655]
[1730826420030,2.9554,169.21,169.11,3.76]
[1730826420235,14.19901655,169.2,169.11,3.76]
[1730826420529,14.19901655,169.18,169.11,3.76]
[1730826420733,2.9561,169.17,169.11,3.76]
[1730826421121,14.19901655,169.18,169.11,3.76]
[1730826421633,10.74122509,169.22,169.11,3.76]
[1730826421827,14.19901655,169.21,169.11,3.76]
[1730826423229,2.9554,169.21,169.12,2.9568]
[1730826423530,14.19901655,169.21,169.12,2.9568]
[1730826424322,17.15431655,169.21,169.12,2.9568]
[1730826424525,14.19901655,169.21,169.12,2.9568]
[1730826425128,2.9559,169.18,169.11,3.76]
[1730826425332,14.19901655,169.19,169.11,3.76]
[1730826425838,14.19901655,169.19,169.08,14.19901655]
[1730826426028,14.19901655,169.19,169.09,3.76]
[1730826426439,2.956,169.17,169.11,2.957]
[1730826427225,2.956,169.17,169.1,2.9572]
[1730826428336,2.956,169.17,169.09,3.76]
[1730826428530,2.956,169.17,169.11,2.957]
[1730826429134,14.19901655,169.19,169.1,14.19901655]
[1730826429330,8.24919825,169.33,169.17,14.19901655]
[1730826429532,2.6411,169.31,169.22,14.19901655]
[1730826429737,2.6411,169.31,169.22,2.955]
[1730826430432,5.5947,169.31,169.21,14.19901655]
[1730826430633,19.79371655,169.31,169.21,14.19901655]
[1730826430838,16.84011655,169.31,169.21,14.19901655]
[1730826431240,16.84011655,169.31,169.2,5.04]
[1730826432235,14.19901655,169.28,169.2,7.9954]
[1730826432930,14.19901655,169.26,169.17,17.15501655]
[1730826433136,2.9543,169.27,169.17,7.996]
[1730826433348,2.6411,169.31,169.17,19.23901655]
[1730826433532,14.19901655,169.29,169.17,19.23901655]
[1730826434235,14.19901655,169.27,169.17,5.04]
[1730826435055,14.19901655,169.27,169.15,14.19901655]
[1730826435242,14.19901655,169.27,169.17,5.34]
[1730826435447,2.9547,169.25,169.17,5.34]
[1730826435650,2.6775,169.24,169.17,5.34]
[1730826436054,2.6775,169.24,169.17,19.53901655]
[1730826436760,2.6775,169.24,169.18,2.9558]
[1730826437260,2.6775,169.24,169.17,19.53901655]
[1730826437453,2.6775,169.24,169.19,2.9556]
[1730826438457,2.6775,169.24,169.17,19.53901655]
[1730826438657,2.6775,169.24,169.18,2.9558]
[1730826439958,2.9537,169.31,169.23,2.9549]
[1730826440167,2.9537,169.31,169.22,14.19901655]
[1730826440168,2.6579,169.31,169.22,14.19901655]
[1730826440469,2.6579,169.31,169.17,5.34]
[1730826440470,2.9543,169.27,169.19,17.15451655]
[1730826440661,2.9543,169.27,169.2,5.34]
[1730826441060,2.9544,169.26,169.19,19.53901655]
[1730826441356,2.9544,169.26,169.12,0.5869]
[1730826441559,2.9544,169.26,169.17,14.19901655]
[1730826441955,2.9544,169.26,169.19,2.9556]
[1730826443062,2.9544,169.26,169.17,14.19901655]
[1730826443265,2.9544,169.26,169.18,2.9558]
[1730826443855,2.9544,169.26,169.19,17.15461655]
[1730826444054,2.9542,169.28,169.19,14.19901655]
[1730826444560,2.9542,169.28,169.21,2.9553]
[1730826444761,2.6579,169.31,169.19,14.19901655]
[1730826444962,2.6579,169.31,169.21,2.9551]
[1730826445559,2.6579,169.31,169.22,2.9551]
[1730826445763,2.6579,169.31,169.19,14.19901655]
[1730826445963,16.85691655,169.31,169.19,14.19901655]
[1730826446658,2.9545,169.26,169.19,14.19901655]
[1730826446865,14.19901655,169.26,169.12,0.5869]
[1730826447062,14.19901655,169.26,169.16,14.19901655]
[1730826447263,14.19901655,169.29,169.16,14.19901655]
[1730826447566,2.9548,169.25,169.19,2.9557]
[1730826447951,2.9548,169.25,169.16,14.19901655]
[1730826448157,2.9542,169.28,169.21,17.15411655]
[1730826448352,22.19691655,169.31,169.21,17.15411655]
[1730826449257,2.9543,169.27,169.21,17.15411655]
[1730826449861,2.9539,169.29,169.21,14.19901655]
[1730826450057,2.6579,169.31,169.21,14.19901655]
[1730826450453,16.85691655,169.31,169.21,14.19901655]
[1730826450861,2.9537,169.31,169.22,2.9551]
[1730826451053,18.15861655,169.33,169.23,14.19901655]
[1730826451370,14.19901655,169.31,169.21,14.19901655]
[1730826451761,14.19901655,169.29,169.12,0.5869]
[1730826451960,14.19901655,169.29,169.17,14.19901655]
[1730826452167,14.19901655,169.31,169.2,14.19901655]
[1730826452362,14.19901655,169.31,169.2,19.53901655]
[1730826452570,2.9544,169.27,169.21,2.9553]
[1730826453079,2.954,169.29,169.23,2.9549]
[1730826453561,21.17393406,169.33,169.23,2.9549]
[1730826454560,18.15861655,169.33,169.22,14.19901655]
[1730826454762,3.9596,169.33,169.24,17.15371655]
[1730826455061,2.9539,169.29,169.24,14.19901655]
[1730826455464,2.9539,169.29,169.24,17.15361655]
[1730826455664,3.9596,169.33,169.24,14.19901655]
[1730826455866,2.9538,169.3,169.24,14.19901655]
[1730826456061,2.9538,169.3,169.24,17.15381655]
[1730826456364,3.9596,169.33,169.24,14.19901655]
[1730826456761,2.9536,169.31,169.24,14.19901655]
[1730826457158,2.9536,169.31,169.25,2.9546]
[1730826457970,2.9529,169.35,169.3,2.9537]
[1730826458168,2.9529,169.35,169.28,14.19901655]
[1730826458369,14.19901655,169.38,169.28,14.19901655]
[1730826458671,14.19901655,169.36,169.26,22.49341655]
[1730826459067,14.19901655,169.36,169.26,19.53901655]
[1730826459368,2.9538,169.3,169.26,19.53901655]
[1730826459760,2.9538,169.3,169.26,5.34]
[1730826459967,14.19901655,169.34,169.24,17.15371655]
[1730826460166,2.7405,169.33,169.24,14.19901655]
[1730826460570,2.9539,169.3,169.24,17.15361655]
[1730826460772,2.9539,169.3,169.24,14.19901655]
[1730826461070,2.7405,169.33,169.24,14.19901655]
[1730826461768,2.7405,169.33,169.25,2.9545]
[1730826462469,2.7405,169.33,169.26,2.9544]
[1730826463265,1.3813,169.33,169.28,2.9541]
[1730826463877,1.3813,169.33,169.26,14.19901655]
[1730826463878,4.3347,169.33,169.26,14.19901655]
[1730826464079,1.3813,169.33,169.27,2.9541]
[1730826464764,2.9534,169.32,169.27,2.9541]
[1730826465173,1.3813,169.33,169.26,14.19901655]
[1730826465469,1.3813,169.33,169.23,5.32]
[1730826465470,9.07295256,169.28,169.23,9.07295256]
[1730826466263,9.07295256,169.3,169.24,9.07295256]
[1730826466664,2.9542,169.28,169.24,9.07295256]
[1730826467167,2.9539,169.3,169.24,12.02755256]
[1730826467370,1.3813,169.33,169.26,9.07295256]
[1730826467672,9.07295256,169.32,169.26,9.07295256]
[1730826468273,9.07295256,169.3,169.25,9.07295256]
[1730826468470,2.954,169.29,169.25,9.07295256]
[1730826468873,1.3813,169.33,169.25,9.07295256]
[1730826469172,9.07295256,169.32,169.26,9.07295256]
[1730826469672,2.9537,169.3,169.26,9.07295256]
[1730826470775,9.07295256,169.32,169.26,9.07295256]
[1730826471171,2.9537,169.3,169.26,9.07295256]
[1730826472270,2.9534,169.32,169.27,12.02705256]
[1730826472474,2.9534,169.32,169.29,9.07295256]
[1730826473174,9.07295256,169.36,169.31,9.07295256]
[1730826473377,9.07295256,169.34,169.29,9.07295256]
[1730826473975,2.9536,169.31,169.28,9.07295256]
[1730826474564,9.07295256,169.33,169.28,9.07295256]
[1730826474875,2.9538,169.3,169.28,9.07295256]
[1730826476178,2.9536,169.31,169.28,9.07295256]
[1730826476377,9.07295256,169.33,169.28,9.07295256]
[1730826476873,9.07295256,169.33,169.25,8.2146]
[1730826477180,9.07295256,169.33,169.27,9.07295256]
[1730826477379,2.9539,169.29,169.27,9.07295256]
[1730826478073,2.954,169.29,169.27,9.07295256]
[1730826478274,9.07295256,169.33,169.27,9.07295256]
[1730826478478,1.2956,169.32,169.27,9.07295256]
[1730826478679,2.9543,169.27,169.24,5.26]
[1730826478877,2.9543,169.27,169.25,9.07295256]
[1730826480276,9.07295256,169.3,169.21,5.26]
[1730826480474,2.9546,169.26,169.23,9.07295256]
[1730826481179,2.9546,169.26,169.22,2.9551]
[1730826481377,2.9543,169.27,169.24,9.07295256]
[1730826482181,2.9545,169.26,169.23,9.07295256]
[1730826482481,9.07295256,169.27,169.2,2.9553]
[1730826482684,9.07295256,169.27,169.22,9.07295256]
[1730826483287,2.9546,169.25,169.21,2.9552]
[1730826483481,1.302,169.3,169.24,9.07295256]
[1730826483691,1.302,169.3,169.27,9.07295256]
[1730826483988,2.9537,169.3,169.27,9.07295256]
[1730826484280,1.2956,169.32,169.29,9.07295256]
[1730826484481,2.9537,169.31,169.29,9.07295256]
[1730826486486,1.2956,169.32,169.24,4.98]
[1730826486487,2.9538,169.3,169.24,4.98]
[1730826486674,2.9538,169.3,169.27,9.07295256]
[1730826490982,2.954,169.29,169.27,9.07295256]
[1730826491191,10.36855256,169.32,169.27,9.07295256]
[1730826491390,9.07295256,169.3,169.26,9.07295256]
[1730826491587,9.07295256,169.3,169.17,0.5851]
[1730826491588,9.07295256,169.3,169.24,9.07295256]
[1730826491788,9.07295256,169.29,169.24,9.07295256]
[1730826492085,9.07295256,169.27,169.17,0.5851]
[1730826492282,9.07295256,169.27,169.22,9.07295256]
[1730826493088,2.9558,169.19,169.15,2.9562]
[1730826493293,9.07295256,169.2,169.15,9.07295256]
[1730826493594,9.07295256,169.2,169.05,0.5854]
[1730826493595,9.07295256,169.2,169.14,9.07295256]
[1730826493996,9.07295256,169.2,169.08,4.98]
[1730826494186,9.07295256,169.18,169.12,9.07295256]
[1730826494386,9.07295256,169.17,169.05,0.5854]
[1730826494586,9.07295256,169.17,169.11,9.07295256]
[1730826494788,9.07295256,169.15,169.1,9.07295256]
[1730826495094,4.98,169.17,169.03,4.98]
[1730826495295,4.98,169.17,169.06,9.07295256]
[1730826495296,2.5379,169.14,169.06,9.07295256]
[1730826495486,1.3804,169.13,169.06,9.07295256]
[1730826495683,2.9576,169.08,169.06,9.07295256]
[1730826496286,2.9571,169.11,169.07,9.07295256]
[1730826496492,1.3804,169.13,169.07,9.07295256]
[1730826496688,1.3804,169.13,169.01,4.98]
[1730826496893,1.3804,169.13,169.08,9.07295256]
[1730826497093,2.9573,169.1,169.04,2.9583]
[1730826497291,2.9573,169.1,169.05,14.20850227]
[1730826497484,1.3804,169.13,169.05,14.20850227]
[1730826497690,2.9574,169.1,169.03,17.16690227]
[1730826497891,1.3804,169.13,169.03,17.16690227]
[1730826498197,1.3804,169.13,168.99,42.54]
[1730826498198,2.9572,169.1,169.05,14.20850227]
[1730826498495,1.3804,169.13,169.05,14.20850227]
[1730826498683,2.9571,169.11,169.06,2.9578]
[1730826499493,2.5379,169.14,169.1,14.20850227]
[1730826499999,2.9562,169.16,169.11,2.957]
[1730826500702,1.3069,169.18,169.1,14.20850227]
[1730826500890,2.9567,169.13,169.07,14.20850227]
[1730826501090,14.20850227,169.17,169.07,14.20850227]
[1730826501300,2.957,169.12,169.07,17.16620227]
[1730826502095,2.9566,169.14,169.08,2.9576]
[1730826502288,2.9566,169.14,169.07,14.20850227]
[1730826502690,14.20850227,169.17,169.09,2.9574]
[1730826502892,2.9567,169.13,169.09,2.9574]
[1730826503092,14.20850227,169.17,169.09,2.9574]
[1730826503495,2.9567,169.13,169.07,14.20850227]
[1730826503706,14.20850227,169.17,169.07,17.16620227]
[1730826504298,2.9571,169.11,169.07,14.20850227]
[1730826504996,2.9572,169.1,169.05,17.16660227]
[1730826505395,14.20850227,169.17,169.05,14.20850227]
[1730826505594,1.3069,169.18,169.01,4.7]
[1730826505799,14.20850227,169.16,169.05,14.20850227]
[1730826506303,2.9573,169.1,169.05,17.16650227]
[1730826506688,2.9573,169.1,169.07,14.20850227]
[1730826507702,2.9575,169.09,169.07,14.20850227]
[1730826507888,14.20850227,169.16,169.07,14.20850227]
[1730826508891,14.20850227,169.16,169.05,14.20850227]
[1730826509495,2.9575,169.09,169.05,14.20850227]
[1730826509900,7.61417321,169.13,169.05,14.20850227]
[1730826510095,2.9575,169.09,169.05,14.20850227]
[1730826511291,1.3839,169.11,169.05,14.20850227]
[1730826511693,1.3839,169.11,169.03,14.20850227]
[1730826511900,2.9581,169.06,169.03,14.20850227]
[1730826513207,2.9583,169.05,169.0,14.20850227]
[1730826514009,1.3839,169.11,169.0,14.20850227]
[1730826514603,1.3839,169.11,168.99,2.959]
[1730826514604,2.9583,169.04,168.99,2.959]
[1730826514807,2.9583,169.04,169.0,14.20850227]
[1730826515006,1.3839,169.11,169.0,14.20850227]
[1730826515209,2.9581,169.05,169.0,17.16730227]
[1730826516508,2.9583,169.04,169.0,2.9588]
[1730826516709,2.9583,169.04,168.97,14.20850227]
[1730826517006,4.44,169.07,168.91,14.20850227]
[1730826517007,14.20850227,169.02,168.91,14.20850227]
[1730826517201,1.2506,169.01,168.91,14.20850227]
[1730826517399,5.6906,169.01,168.94,2.96]
[1730826517600,8.6495,169.01,168.94,2.96]
[1730826517807,1.2506,169.01,168.95,14.20850227]
[1730826518206,1.2506,169.01,168.93,14.20850227]
[1730826518405,2.9597,168.97,168.9,14.20850227]
[1730826519111,14.20850227,169.0,168.9,14.20850227]
[1730826519412,18.46573862,169.01,168.91,2.9605]
[1730826519906,2.9597,168.97,168.91,2.9605]
[1730826520112,4.44,168.99,168.92,2.9603]
[1730826520607,2.9596,168.97,168.9,14.20850227]
[1730826520801,2.9596,168.97,168.91,2.9605]
[1730826521209,2.9596,168.97,168.9,14.20850227]
[1730826521404,2.9596,168.97,168.92,2.9603]
[1730826521911,7.3992,168.99,168.92,14.20850227]
[1730826522309,2.9595,168.97,168.91,2.9604]
[1730826522508,4.44,168.99,168.91,2.9604]
[1730826522912,2.9597,168.96,168.89,14.20850227]
[1730826523114,4.44,168.99,168.93,2.9602]
[1730826523308,4.44,168.99,168.91,14.20850227]
[1730826523509,7.3993,168.99,168.91,14.20850227]
[1730826523704,4.44,168.99,168.93,2.9602]
[1730826524413,2.9595,168.98,168.93,2.9602]
[1730826524616,4.44,168.99,168.91,14.20850227]
[1730826524809,1.2506,169.01,168.94,14.20850227]
[1730826525009,1.2506,169.01,168.96,14.20850227]
[1730826525211,1.3606,169.03,168.96,14.20850227]
[1730826525419,4.3192,169.03,168.96,14.20850227]
[1730826526317,2.9589,169.01,168.96,2.9595]
[1730826526715,1.3606,169.03,168.93,18.64850227]
[1730826526912,4.3165,169.04,168.99,2.959]
[1730826527508,4.3165,169.04,169.0,2.9588]
[1730826527509,1.3582,169.04,169.0,2.9588]
[1730826528117,1.3582,169.04,168.96,14.20850227]
[1730826528316,1.3582,169.04,169.0,2.9589]
[1730826529011,2.9583,169.05,169.0,2.9589]
[1730826529417,4.44,169.07,169.02,2.9585]
[1730826529819,2.9579,169.06,169.02,2.9585]
[1730826530618,7.3978,169.07,169.02,2.9585]
[1730826531017,2.9578,169.07,169.02,2.9585]
[1730826531913,2.9581,169.05,169.0,2.9588]
[1730826532820,15.52500227,169.09,169.0,2.9588]
[1730826533130,2.9586,169.02,168.98,2.9592]
[1730826533716,14.20850227,169.06,168.98,2.9592]
[1730826533918,2.9585,169.03,168.96,14.20850227]
[1730826534121,2.9585,169.03,168.99,2.9591]
[1730826534430,2.9581,169.06,168.98,14.20850227]
[1730826534620,19.96500227,169.09,168.98,14.20850227]
[1730826535022,2.9582,169.05,168.98,14.20850227]
[1730826535620,2.9582,169.05,169.0,2.9588]
[1730826536133,2.9582,169.05,168.98,14.20850227]
[1730826536327,2.9582,169.05,169.0,2.959]
[1730826536722,2.9584,169.04,168.96,14.20850227]
[1730826536921,2.9584,169.04,168.99,2.9591]
[1730826537124,14.20850227,169.06,168.96,14.20850227]
[1730826537628,2.9582,169.05,169.01,2.9587]
[1730826538927,14.20850227,169.06,168.96,14.20850227]
[1730826539127,2.9584,169.04,168.99,2.959]
[1730826539819,2.9581,169.05,168.96,14.20850227]
[1730826540324,14.20850227,169.06,168.96,14.20850227]
[1730826540729,14.20850227,169.06,169.01,2.9588]
[1730826541931,2.9581,169.05,169.01,2.9588]
[1730826543029,14.20850227,169.06,168.98,2.9592]
[1730826543030,2.9586,169.03,168.98,2.9592]
[1730826543231,14.20850227,169.04,168.98,2.9592]
[1730826543427,9.09332969,169.03,168.97,9.09332969]
[1730826543635,12.05192969,169.03,168.99,2.959]
[1730826543938,9.09332969,169.03,168.97,9.09332969]
[1730826544139,4.18,169.08,168.98,9.09332969]
[1730826544324,9.09332969,169.04,168.98,9.09332969]
[1730826544730,2.9585,169.03,168.99,2.9591]
[1730826545236,12.05182969,169.03,168.99,2.9591]
[1730826545437,12.05142969,169.06,169.01,2.9587]
[1730826545640,4.18,169.08,169.02,9.09332969]
[1730826545933,12.05092969,169.08,169.04,2.9582]
[1730826547433,13.36722969,169.09,169.05,2.9581]
[1730826548040,10.40982969,169.09,169.05,2.9581]
[1730826548437,10.42542969,169.1,169.03,9.09332969]
[1730826548738,13.38262969,169.1,169.03,9.09332969]
[1730826549240,13.38262969,169.1,169.05,2.958]
[1730826549441,4.2893,169.1,169.01,14.19471916]
[1730826550342,4.2893,169.1,169.05,2.9579]
[1730826551839,4.2893,169.1,169.06,2.9579]
[1730826552246,2.9572,169.1,169.06,2.9579]
[1730826552742,14.19471916,169.15,169.03,14.19471916]
[1730826552946,1.299,169.16,169.06,14.19471916]
[1730826553345,2.9567,169.14,169.09,2.9574]
[1730826553547,1.299,169.16,169.08,14.19471916]
[1730826554141,2.9565,169.14,169.1,2.9572]
[1730826554943,2.9564,169.15,169.1,2.9572]
[1730826555144,1.299,169.16,169.01,2.9587]
[1730826555145,14.19471916,169.11,169.01,2.9587]
[1730826555346,14.19471916,169.11,168.99,14.19471916]
[1730826555546,2.9579,169.06,168.97,4.16]
[1730826555849,14.19471916,169.08,169.0,2.9589]
[1730826556047,14.19471916,169.08,168.97,4.16]
[1730826556447,14.19471916,169.08,169.01,2.9586]
[1730826556642,2.9579,169.06,169.01,2.9586]
[1730826556840,2.9579,169.06,168.97,4.16]
[1730826557245,2.9581,169.05,168.97,4.16]
[1730826557443,14.19471916,169.08,168.97,4.16]
[1730826557650,2.9579,169.06,169.01,2.9587]
[1730826558346,2.9579,169.06,169.01,2.9586]
[1730826558847,4.2144,169.1,169.01,14.19471916]
[1730826559056,1.2572,169.1,169.04,2.9583]
[1730826559453,2.9576,169.08,169.01,14.19471916]